bitfinex/quotes_ETHUSD_20240823
["timestamp","ask_amount","ask_price","bid_price","bid_amount"]
[1724431537259,7.46478,2679.3,2678.8,2.3679]
[1724431537467,3.73238,2679.3,2678.8,2.3679]
[1724431538758,3.73249,2679.2,2678.8,2.3679]
[1724431539291,7.4653,2679.1,2678.6,19.9]
[1724431539428,3.73261,2679.1,2678.6,19.9]
[1724431539773,3.73261,2679.1,2678.5,6.18903]
[1724431540295,3.73276,2679.0,2678.4,3.73355]
[1724431540586,3.7327,2679.1,2678.4,3.73347]
[1724431540897,3.73243,2679.3,2678.3,7.44]
[1724431541058,3.73245,2679.2,2678.6,3.73318]
[1724431541276,3.73245,2679.2,2678.5,2.3949]
[1724431541277,3.73286,2679.0,2678.5,2.3949]
[1724431542096,3.73254,2679.2,2678.5,2.3949]
[1724431542253,3.73254,2679.2,2678.6,7.4664]
[1724431542442,3.73254,2679.2,2678.5,2.3949]
[1724431542443,3.73254,2679.2,2678.7,3.73312]
[1724431543075,3.7326,2679.1,2678.5,6.12821]
[1724431543282,3.73274,2679.0,2678.5,2.3949]
[1724431544093,3.73249,2679.2,2678.5,6.12823]
[1724431544636,3.73267,2679.1,2678.5,2.3949]
[1724431545041,3.73274,2679.0,2678.5,2.3949]
[1724431545646,3.73301,2678.8,2678.5,2.3949]
[1724431545836,3.73301,2678.8,2678.3,7.44]
[1724431546041,3.73315,2678.7,2678.3,7.44]
[1724431546280,3.73301,2678.8,2678.2,2.406]
[1724431546473,4.13853362,2679.4,2678.4,3.73356]
[1724431546474,7.46568,2679.0,2678.4,3.73356]
[1724431546673,3.73282,2679.0,2678.4,3.73356]
[1724431547086,3.73295,2678.9,2678.2,9.87352]
[1724431547249,3.73301,2678.8,2678.2,6.13975]
[1724431547458,7.46613,2678.8,2678.2,6.13975]
[1724431547687,3.73316,2678.7,2678.2,2.406]
[1724431548005,3.73301,2678.8,2678.2,2.406]
[1724431548006,7.46611,2678.8,2678.2,2.406]
[1724431548300,3.73301,2678.8,2678.2,6.13983]
[1724431548647,3.73301,2678.8,2678.2,2.406]
[1724431548847,3.73323,2678.7,2678.2,2.406]
[1724431549047,3.7333,2678.6,2678.2,2.406]
[1724431549259,3.7333,2678.6,2678.1,19.85453106]
[1724431549474,3.73353,2678.5,2678.1,19.85453106]
[1724431549787,3.73358,2678.4,2678.1,19.84]
[1724431549952,3.7333,2678.6,2678.1,19.84]
[1724431550145,3.73374,2678.3,2678.0,7.44]
[1724431550881,7.46755,2678.3,2678.0,7.44]
[1724431551125,7.46755,2678.3,2677.7,16.19452]
[1724431551126,3.73386,2678.2,2677.7,12.46]
[1724431551294,3.73386,2678.2,2677.6,17.35068]
[1724431551295,7.46757,2678.3,2677.6,17.35067]
[1724431551666,3.73374,2678.3,2677.7,3.73454]
[1724431551874,3.73374,2678.3,2677.8,3.7344]
[1724431552076,3.73374,2678.3,2677.6,17.35063]
[1724431552407,3.73399,2678.1,2677.6,13.61606]
[1724431552990,8.439652,2678.3,2677.6,13.61606]
[1724431553187,4.705862,2678.3,2677.6,13.61606]
[1724431553585,4.705862,2678.3,2677.6,9.8815]
[1724431553779,0.972122,2678.3,2677.6,9.8815]
[1724431553963,3.73422,2678.0,2677.6,7.44]
[1724431554169,3.73428,2677.9,2677.6,7.44]
[1724431554370,3.73428,2677.9,2677.4,19.84]
[1724431554678,3.73411,2678.1,2677.3,2.335]
[1724431554876,3.73408,2678.1,2677.5,3.73474]
[1724431555075,3.73408,2678.1,2677.4,3.73488]
[1724431555284,4.705912,2678.3,2677.6,3.73464]
[1724431555468,3.73386,2678.2,2677.7,2.335]
[1724431556570,3.73373,2678.3,2677.7,6.06946]
[1724431556765,3.73358,2678.4,2677.8,3.73431]
[1724431557015,7.46728,2678.4,2677.8,3.73431]
[1724431557165,3.73358,2678.4,2677.8,3.73431]
[1724431557723,3.73378,2678.3,2677.7,2.335]
[1724431558045,3.73378,2678.3,2677.7,6.06953]
[1724431558785,3.73358,2678.4,2677.8,3.7344]
[1724431559372,3.73358,2678.4,2677.7,2.335]
[1724431559701,3.73387,2678.2,2677.7,6.06954]
[1724431560269,3.73374,2678.3,2677.7,6.06947]
[1724431560482,3.73385,2678.2,2677.7,6.06947]
[1724431560795,7.46729,2678.4,2677.7,9.80394]
[1724431561109,7.46729,2678.4,2677.7,6.06947]
[1724431561110,3.73371,2678.3,2677.7,6.06947]
[1724431561405,3.73358,2678.4,2677.8,3.73439]
[1724431562080,3.73387,2678.2,2677.7,2.335]
[1724431562294,4.13853362,2678.5,2677.7,2.335]
[1724431562496,3.73467,2677.7,2677.2,7.44]
[1724431562699,3.73479,2677.6,2677.2,7.44]
[1724431562895,7.46933,2677.7,2677.1,2.4519]
[1724431563095,7.4687,2677.9,2677.1,6.18715]
[1724431563431,3.73449,2677.8,2677.1,6.18715]
[1724431563578,3.73449,2677.8,2677.2,3.73521]
[1724431563923,7.46868,2677.9,2677.3,3.735]
[1724431564526,3.73462,2677.7,2677.1,2.4519]
[1724431565706,3.7347,2677.6,2677.1,2.4519]
[1724431566009,3.73485,2677.5,2677.1,2.4519]
[1724431566365,3.68485,2677.5,2677.1,2.4519]
[1724431566676,3.73462,2677.7,2677.1,2.4519]
[1724431566880,3.0,2678.4,2677.1,2.357]
[1724431567213,3.73439,2677.9,2677.3,2.357]
[1724431567375,3.73403,2678.1,2677.3,2.357]
[1724431567611,3.73392,2678.2,2677.4,3.73493]
[1724431567778,3.73351,2678.5,2677.8,3.73438]
[1724431568026,3.73379,2678.3,2677.7,2.357]
[1724431568233,0.41812544,2678.6,2677.7,2.357]
[1724431568537,0.41812544,2678.6,2677.6,7.44]
[1724431568538,3.73454,2677.8,2677.6,7.44]
[1724431568827,3.73436,2677.9,2677.4,2.4152]
[1724431569130,3.73441,2677.8,2677.4,2.4152]
[1724431570166,6.12895,2678.3,2677.2,7.44]
[1724431570167,3.73477,2677.6,2677.2,7.44]
[1724431570365,7.13853362,2678.2,2677.2,7.44]
[1724431570366,3.73486,2677.5,2677.2,7.44]
[1724431570483,3.73504,2677.4,2677.2,7.44]
[1724431570903,3.7348,2677.6,2677.2,7.44]
[1724431571278,3.73505,2677.4,2677.1,2.4152]
[1724431571541,3.7351,2677.3,2676.8,6.21219]
[1724431571686,3.7351,2677.3,2676.8,2.4765]
[1724431572018,3.73541,2677.1,2676.8,2.4765]
[1724431572510,7.47089,2677.1,2676.8,2.4765]
[1724431572711,3.73552,2677.0,2676.8,2.4765]
[1724431572918,3.73552,2677.0,2676.7,7.44]
[1724431573314,3.73566,2676.9,2676.5,2.4933]
[1724431573745,3.73541,2677.1,2676.5,2.4933]
[1724431573925,3.73604,2676.7,2676.2,9.9333]
[1724431574223,7.47148,2676.9,2676.2,6.22991]
[1724431574738,6.1266,2677.4,2676.2,6.22991]
[1724431574739,3.73539,2677.1,2676.2,6.22991]
[1724431575029,3.7356,2677.0,2676.4,3.73634]
[1724431575181,3.73567,2676.9,2676.2,6.22991]
[1724431575381,3.73582,2676.8,2676.2,6.22991]
[1724431575623,3.73582,2676.8,2676.2,2.4933]
[1724431575931,3.73608,2676.6,2676.2,2.4933]
[1724431576361,7.47229,2676.6,2676.2,2.4933]
[1724431576477,3.73586,2676.8,2676.2,2.4933]
[1724431576989,3.73576,2676.9,2676.2,2.4933]
[1724431577193,3.73589,2676.8,2676.2,6.22992]
[1724431577794,3.73576,2676.9,2676.2,2.4933]
[1724431577795,3.73594,2676.7,2676.2,2.4933]
[1724431577915,7.47197,2676.7,2676.2,2.4933]
[1724431578115,3.73609,2676.6,2676.2,2.4933]
[1724431578320,3.73632,2676.5,2676.2,2.4933]
[1724431578627,4.109952,2676.5,2675.9,7.44]
[1724431578845,7.47262,2676.5,2675.9,7.44]
[1724431579050,3.7363,2676.5,2675.9,11.17697]
[1724431579268,3.7363,2676.5,2676.0,3.7369]
[1724431579480,3.73637,2676.4,2675.8,2.4933]
[1724431579978,3.73638,2676.4,2675.8,6.23047]
[1724431580133,7.47285,2676.4,2675.8,6.23047]
[1724431580470,3.73652,2676.3,2675.8,2.4933]
[1724431581670,3.73664,2676.2,2675.8,2.4933]
[1724431582553,4.345678,2676.4,2675.8,2.4933]
[1724431582554,3.7365,2676.3,2675.8,2.4933]
[1724431583142,3.73638,2676.4,2675.8,6.23049]
[1724431583378,6.09275,2676.6,2675.9,3.73705]
[1724431583379,3.73622,2676.5,2675.9,3.73705]
[1724431583538,3.73625,2676.5,2675.9,3.73705]
[1724431584866,3.7364,2676.4,2675.8,2.4933]
[1724431585061,3.7364,2676.4,2675.8,6.23036]
[1724431585430,7.47285,2676.4,2675.8,6.23036]
[1724431585776,3.73665,2676.2,2675.8,2.4933]
[1724431585973,3.7364,2676.4,2675.8,2.4933]
[1724431586183,7.47233,2676.6,2675.9,3.73697]
[1724431586775,3.73622,2676.5,2675.9,3.73697]
[1724431586935,3.7361,2676.6,2676.0,6.22841]
[1724431587153,3.73609,2676.6,2676.0,2.4915]
[1724431587343,3.73626,2676.5,2676.0,2.4915]
[1724431587578,3.73609,2676.6,2676.0,2.4915]
[1724431588137,3.73586,2676.8,2676.2,2.3218]
[1724431588537,3.73597,2676.7,2676.2,2.3218]
[1724431588857,7.47229,2676.6,2676.2,2.3218]
[1724431589167,3.73613,2676.6,2676.2,2.3218]
[1724431590553,3.73615,2676.6,2676.2,2.3218]
[1724431591672,3.7364,2676.4,2676.2,2.3218]
[1724431592009,7.84651,2676.4,2675.9,9.7356]
[1724431592147,7.47287,2676.4,2675.9,9.7356]
[1724431592348,3.73651,2676.3,2675.9,9.7356]
[1724431593184,3.73666,2676.2,2675.9,9.7356]
[1724431594201,7.47292,2676.4,2675.9,9.7356]
[1724431594364,3.73644,2676.4,2675.9,9.7356]
[1724431594570,3.73616,2676.6,2675.9,13.47264]
[1724431595012,3.0,2677.1,2675.9,13.47264]
[1724431595013,3.73594,2676.7,2676.1,3.73668]
[1724431595174,3.73594,2676.7,2676.1,6.09648]
[1724431595719,3.73586,2676.8,2676.2,3.73663]
[1724431595854,3.73517,2677.3,2676.3,2.4158]
[1724431596052,3.73565,2677.0,2676.3,6.15227]
[1724431596717,3.73574,2676.9,2676.3,2.4158]
[1724431596902,3.7359,2676.8,2676.3,2.4158]
[1724431597112,3.73574,2676.9,2676.4,0.24158]
[1724431597317,3.73519,2677.3,2676.5,6.10318]
[1724431597518,3.73519,2677.3,2676.6,2.44181797]
[1724431597762,3.73525,2677.2,2676.8,2.3671]
[1724431598773,3.73519,2677.3,2676.8,2.3671]
[1724431598979,3.73489,2677.5,2676.8,2.3671]
[1724431599175,0.746943,2677.6,2676.8,2.3671]
[1724431599176,3.73514,2677.3,2676.8,2.3671]
[1724431600053,3.73489,2677.5,2676.8,2.44180684]
[1724431600284,3.73489,2677.5,2677.0,2.3622]
[1724431600722,3.73421,2678.0,2677.4,2.3622]
[1724431601035,3.7343,2677.9,2677.4,2.3622]
[1724431601218,7.4687,2677.9,2677.4,2.3622]
[1724431601614,2.4727,2678.8,2677.5,0.07469224]
[1724431601940,3.73323,2678.7,2678.2,2.3622]
[1724431602139,3.73267,2679.1,2678.3,3.7336]
[1724431602363,3.73267,2679.1,2678.4,2.3622]
[1724431602364,3.73273,2679.0,2678.4,2.3622]
[1724431602479,3.73288,2678.9,2678.4,2.3622]
[1724431603460,3.73288,2678.9,2678.4,2.59842]
[1724431603746,3.73267,2679.1,2678.4,2.59842]
[1724431603949,3.0,2679.4,2678.4,2.59842]
[1724431603950,3.7329,2678.9,2678.4,2.59842]
[1724431604160,3.7329,2678.9,2678.4,2.3622]
[1724431604449,3.73303,2678.8,2678.4,2.3622]
[1724431604660,3.73316,2678.7,2678.0,2.3302]
[1724431604799,3.73354,2678.5,2678.0,2.3302]
[1724431606440,3.73361,2678.4,2678.0,2.3302]
[1724431606796,3.73354,2678.5,2678.0,2.3302]
[1724431607260,3.73358,2678.4,2678.0,2.3302]
[1724431608010,3.73354,2678.5,2678.0,2.3302]
[1724431608896,3.73354,2678.5,2678.0,2.32446214]
[1724431609077,3.73358,2678.4,2678.0,2.32446214]
[1724431609696,4.480292,2678.4,2678.0,2.32446214]
[1724431610469,3.73346,2678.5,2678.0,2.32446214]
[1724431611457,3.73318,2678.7,2677.9,3.73423]
[1724431611458,3.73318,2678.7,2678.1,3.73391]
[1724431611878,3.73318,2678.7,2678.2,2.3355]
[1724431612191,3.73329,2678.6,2678.2,2.3355]
[1724431612690,3.73334,2678.6,2678.2,2.3355]
[1724431612893,3.73344,2678.5,2678.2,2.3355]
[1724431613896,3.73344,2678.5,2677.8,2.3456]
[1724431614680,3.73393,2678.2,2677.8,2.3456]
[1724431614992,3.73406,2678.1,2677.8,2.3456]
[1724431615384,3.73423,2678.0,2677.8,2.3456]
[1724431615759,3.7341,2678.1,2677.8,2.3456]
[1724431616568,3.73393,2678.2,2677.8,2.3456]
[1724431616856,3.73402,2678.1,2677.8,2.3456]
[1724431618161,3.73393,2678.2,2677.8,2.3456]
[1724431618361,4.107323,2678.2,2677.8,2.3456]
[1724431618595,3.734,2678.1,2677.8,2.3456]
[1724431619097,7.46807,2678.1,2677.8,2.3456]
[1724431619395,3.73426,2677.9,2677.8,2.3456]
[1724431619984,3.73426,2677.9,2677.5,2.2604]
[1724431620296,0.373426,2677.9,2677.5,2.2604]
[1724431620499,3.73374,2678.3,2677.7,3.73445]
[1724431621000,3.73351,2678.5,2677.8,2.2604]
[1724431621206,3.0,2678.6,2677.8,2.2604]
[1724431621406,3.73426,2677.9,2677.8,2.2604]
[1724431621591,0.746839,2677.9,2677.5,2.2604]
[1724431621773,3.73424,2678.0,2677.5,2.2604]
[1724431622162,3.73423,2678.0,2677.5,2.2604]
[1724431622596,3.73428,2677.9,2677.5,2.2604]
[1724431622781,7.46847,2678.0,2677.5,2.2604]
[1724431622983,3.73427,2677.9,2677.5,2.2604]
[1724431623224,0.746848,2677.8,2677.5,2.2604]
[1724431623517,3.73478,2677.6,2677.4,7.44]
[1724431624081,3.73447,2677.8,2677.4,7.44]
[1724431625010,3.0,2678.2,2676.9,2.4152]
[1724431625011,3.73536,2677.2,2676.9,2.4152]
[1724431625213,3.73534,2677.2,2676.9,2.4152]
[1724431626509,3.73457,2677.7,2677.1,3.73529]
[1724431626714,3.73457,2677.7,2677.2,2.3626]
[1724431626874,3.7347,2677.6,2677.2,2.3626]
[1724431627273,6.73451,2677.8,2677.2,2.3626]
[1724431627502,3.73454,2677.7,2677.2,2.3626]
[1724431627710,3.0,2678.1,2677.5,2.3349]
[1724431627711,3.73413,2678.0,2677.5,2.3349]
[1724431627874,6.73406,2678.1,2677.5,2.3349]
[1724431627875,3.7343,2677.9,2677.5,2.3349]
[1724431628175,3.73377,2678.3,2677.5,2.3349]
[1724431628374,3.73379,2678.3,2677.7,3.73444]
[1724431628618,3.73379,2678.3,2677.7,3.73442]
[1724431628815,7.4659,2678.9,2678.2,2.3536]
[1724431628985,3.73291,2678.9,2678.2,6.08744]
[1724431629190,4.479466,2678.9,2678.2,6.08744]
[1724431629422,3.73323,2678.7,2678.2,2.3536]
[1724431630515,3.73323,2678.7,2678.2,2.42826976]
[1724431630719,3.73292,2678.9,2678.2,2.3536]
[1724431631015,3.73282,2679.0,2678.3,3.73369]
[1724431631377,3.73292,2678.9,2678.2,6.08744]
[1724431631579,3.7333,2678.6,2678.2,2.3536]
[1724431632291,3.73308,2678.8,2678.2,2.3536]
[1724431632502,3.73316,2678.7,2678.2,2.3536]
[1724431632830,3.73308,2678.8,2678.2,2.3536]
[1724431633390,3.73326,2678.7,2678.2,2.3536]
[1724431633781,3.73308,2678.8,2678.2,2.3536]
[1724431633978,3.73279,2679.0,2678.2,2.3536]
[1724431634199,3.73252,2679.2,2678.2,2.3536]
[1724431634397,3.73252,2679.2,2678.6,2.4753]
[1724431635020,3.73282,2679.0,2678.6,2.4753]
[1724431635352,3.73304,2678.8,2678.6,2.4753]
[1724431635535,0.373304,2678.7,2678.2,2.4753]
[1724431635752,3.73304,2678.8,2678.2,2.4753]
[1724431636244,3.73311,2678.8,2678.2,2.4753]
[1724431636533,3.73324,2678.7,2678.2,2.4753]
[1724431636737,7.46652,2678.7,2678.2,2.4753]
[1724431637101,3.73324,2678.7,2678.2,2.4753]
[1724431637427,3.73335,2678.6,2678.2,2.4753]
[1724431638406,3.73343,2678.5,2678.2,2.4753]
[1724431638611,4.480097,2678.5,2678.2,2.4753]
[1724431639001,3.7336,2678.4,2678.2,2.4753]
[1724431639839,3.7336,2678.4,2677.8,3.7343]
[1724431639840,3.7336,2678.4,2677.9,2.4348]
[1724431640137,0.746667,2678.5,2677.9,9.90328]
[1724431640298,3.73346,2678.5,2677.9,6.16904]
[1724431640494,3.73346,2678.5,2677.9,6.16899]
[1724431641539,3.7337,2678.4,2677.9,2.4348]
[1724431641779,3.73371,2678.3,2677.9,2.4348]
[1724431642539,3.73388,2678.2,2677.9,2.4348]
[1724431642946,3.73388,2678.2,2677.4,3.0]
[1724431642947,3.73412,2678.0,2677.4,3.73488]
[1724431643150,3.73412,2678.0,2677.5,2.3362]
[1724431643547,7.46788,2678.2,2677.5,6.07093]
[1724431643865,3.73399,2678.1,2677.5,6.07093]
[1724431644277,0.784125,2678.2,2677.6,3.73467]
[1724431644568,0.784125,2678.2,2677.8,2.2511]
[1724431644769,3.73362,2678.4,2677.8,2.2511]
[1724431645129,3.73338,2678.6,2677.8,5.98545]
[1724431645576,3.73338,2678.6,2678.0,3.7341]
[1724431645577,3.73347,2678.5,2678.0,3.7341]
[1724431646071,3.73338,2678.6,2678.1,2.344]
[1724431646365,7.46677,2678.6,2678.1,2.344]
[1724431646572,4.480057,2678.6,2678.1,2.344]
[1724431646767,8.213447,2678.6,2678.1,2.344]
[1724431646977,8.213437,2678.6,2678.1,2.344]
[1724431647272,3.73352,2678.5,2678.1,2.344]
[1724431647468,4.480057,2678.6,2678.1,2.344]
[1724431647642,8.213477,2678.6,2678.1,2.344]
[1724431647845,3.73359,2678.4,2678.1,2.344]
[1724431649170,0.8213477,2678.5,2678.1,2.344]
[1724431649481,3.73345,2678.5,2678.1,2.344]
[1724431649776,3.73358,2678.4,2678.1,2.344]
[1724431649976,3.73378,2678.3,2678.1,2.344]
[1724431650560,3.73358,2678.4,2678.1,2.344]
[1724431651372,7.46673,2678.6,2678.1,2.344]
[1724431651540,3.73205,2679.5,2678.7,2.3528]
[1724431651781,3.73301,2678.8,2678.7,2.3528]
[1724431653057,3.73235,2679.3,2678.3,2.3072]
[1724431653058,3.73317,2678.7,2678.3,2.3072]
[1724431653464,3.7333,2678.6,2678.3,2.3072]
[1724431653980,3.0,2679.4,2678.3,6.04088]
[1724431653981,3.73296,2678.9,2678.3,6.04088]
[1724431654179,3.73303,2678.8,2678.3,2.3072]
[1724431655265,3.73318,2678.7,2678.3,2.3072]
[1724431656066,7.46641,2678.7,2678.3,2.3072]
[1724431656257,3.73318,2678.7,2678.3,2.3072]
[1724431657747,3.73322,2678.7,2678.3,2.3072]
[1724431657940,3.73373,2678.3,2678.0,2.4665]
[1724431658189,3.73399,2678.1,2678.0,2.4665]
[1724431658477,0.746723,2678.3,2678.0,2.4665]
[1724431658683,3.73345,2678.5,2678.0,2.4665]
[1724431658852,3.73345,2678.5,2678.0,6.20062]
[1724431658853,3.73344,2678.5,2678.0,6.20062]
[1724431659258,3.73332,2678.6,2678.0,6.20057]
[1724431660084,3.73324,2678.7,2678.0,6.20057]
[1724431660085,3.73344,2678.5,2678.0,6.20057]
[1724431660784,7.46652,2678.7,2678.1,3.73396]
[1724431660955,3.7333,2678.6,2678.2,2.3014]
[1724431661143,3.73345,2678.5,2678.2,2.3014]
[1724431661541,3.73324,2678.7,2678.2,6.03516]
[1724431662753,3.7331,2678.8,2678.3,2.3867]
[1724431662946,3.73324,2678.7,2678.3,2.3867]
[1724431663502,3.0,2679.3,2678.6,2.3867]
[1724431663503,7.46535,2679.1,2678.6,2.3867]
[1724431663703,3.73275,2679.0,2678.6,2.3867]
[1724431664064,3.7329,2678.9,2678.6,2.3867]
[1724431665151,7.46586,2678.9,2678.6,2.3867]
[1724431665708,3.7329,2678.9,2678.6,2.3867]
[1724431666051,7.46585,2678.9,2678.6,2.3867]
[1724431666489,3.7329,2678.9,2678.6,2.3867]
[1724431668010,7.46585,2678.9,2678.6,2.3867]
[1724431668513,3.73302,2678.8,2678.6,2.3867]
[1724431669517,3.73301,2678.8,2678.6,2.3867]
[1724431670019,3.7329,2678.9,2678.6,2.3867]
[1724431670206,7.46589,2678.9,2678.6,2.3867]
[1724431670409,3.73308,2678.8,2678.6,2.3867]
[1724431670585,3.73315,2678.7,2678.6,2.3867]
[1724431671522,4.479589,2678.9,2678.6,2.3867]
[1724431671820,3.73308,2678.8,2678.6,2.3867]
[1724431672332,3.73283,2679.0,2678.6,2.3867]
[1724431673098,3.73287,2678.9,2678.6,2.3867]
[1724431673523,3.73283,2679.0,2678.6,2.3867]
[1724431674006,3.73295,2678.9,2678.6,2.3867]
[1724431674204,7.4659,2678.9,2678.6,2.3867]
[1724431674595,7.46593,2678.9,2678.6,2.3867]
[1724431674906,3.73315,2678.7,2678.6,2.3867]
[1724431676232,3.73301,2678.8,2678.6,2.3867]
[1724431678124,4.479463,2678.9,2678.6,2.3867]
[1724431678925,3.73304,2678.8,2678.6,2.3867]
[1724431679895,0.746593,2678.9,2678.6,2.3867]
[1724431680134,7.46566,2679.0,2678.6,2.3867]
[1724431680304,2.4722,2679.4,2678.6,2.3867]
[1724431680305,3.73287,2678.9,2678.6,2.3867]
[1724431680496,3.73266,2679.1,2678.6,6.11999]
[1724431680692,3.73256,2679.2,2678.7,3.73308]
[1724431680934,3.73256,2679.2,2678.8,2.4989]
[1724431680935,3.73253,2679.2,2678.8,2.4989]
[1724431681798,7.4651,2679.2,2678.8,2.4989]
[1724431682198,7.46507,2679.2,2678.8,2.4989]
[1724431682399,3.73253,2679.2,2678.8,2.4989]
[1724431683171,3.73212,2679.5,2679.2,2.4989]
[1724431683692,3.73225,2679.4,2679.2,2.4989]
[1724431684378,3.73185,2679.7,2679.2,2.4989]
[1724431684545,7.46371,2679.7,2679.2,2.4989]
[1724431684776,3.73185,2679.7,2679.2,2.4989]
[1724431684958,3.73197,2679.6,2679.2,2.57354235]
[1724431685158,7.46396,2679.6,2679.2,2.4989]
[1724431685451,3.73207,2679.5,2679.2,2.4989]
[1724431685653,3.73221,2679.4,2679.0,2.4168]
[1724431685853,3.73247,2679.2,2679.0,2.4168]
[1724431686047,0.63619849,2679.5,2678.6,2.4168]
[1724431686280,3.73281,2679.0,2678.6,2.4168]
[1724431687868,3.7326,2679.1,2678.6,6.15008]
[1724431688069,7.46508,2679.2,2678.6,6.15008]
[1724431688397,3.73261,2679.1,2678.6,2.4168]
[1724431688697,3.73261,2679.1,2678.6,6.15009]
[1724431689470,3.73227,2679.4,2678.6,6.15009]
[1724431689471,3.73245,2679.3,2678.6,6.15009]
[1724431689801,3.73249,2679.2,2678.6,6.15009]
[1724431690995,0.63619849,2679.5,2678.6,2.4168]
[1724431690996,3.73274,2679.0,2678.6,2.4168]
[1724431691366,3.73254,2679.2,2678.6,2.4168]
[1724431691566,3.73254,2679.2,2678.6,6.14997]
[1724431691995,8.54410621,2679.4,2678.8,3.733]
[1724431692300,3.73233,2679.3,2678.8,3.733]
[1724431692695,3.73227,2679.4,2678.9,3.73286]
[1724431692920,7.464,2679.6,2679.0,6.1886]
[1724431693380,7.464,2679.6,2679.0,2.4559]
[1724431693381,3.73218,2679.4,2679.0,2.4559]
[1724431693985,3.73199,2679.6,2679.0,2.4559]
[1724431694163,3.73199,2679.6,2679.0,6.18856]
[1724431694715,7.46396,2679.6,2679.0,6.18856]
[1724431694938,7.46396,2679.6,2679.0,2.4559]
[1724431694939,3.73198,2679.6,2679.0,2.4559]
[1724431695087,3.73169,2679.8,2679.0,6.18855]
[1724431695088,3.73178,2679.7,2679.0,6.18855]
[1724431695288,3.73193,2679.6,2679.1,2.4416]
[1724431695985,7.46394,2679.6,2679.1,2.4416]
[1724431696413,3.73204,2679.5,2679.1,2.4416]
[1724431696613,3.73193,2679.6,2679.1,2.4416]
[1724431697182,7.46392,2679.6,2679.1,2.4416]
[1724431697370,3.73193,2679.6,2679.1,2.4416]
[1724431697577,3.7322,2679.4,2679.1,2.4416]
[1724431697792,3.73245,2679.2,2678.8,2.3271]
[1724431698207,3.73234,2679.3,2678.8,2.3271]
[1724431698579,3.73199,2679.6,2678.8,6.06002]
[1724431698774,3.73219,2679.4,2678.8,6.06002]
[1724431699473,7.46445,2679.4,2678.8,6.06002]
[1724431699861,3.73234,2679.3,2678.8,6.06002]
[1724431700823,3.73205,2679.5,2678.9,2.3337]
[1724431700965,3.73205,2679.5,2679.0,3.73269]
[1724431701160,4.5157686,2679.5,2679.0,3.73269]
[1724431702004,3.73218,2679.4,2678.9,2.3337]
[1724431702386,3.73218,2679.4,2678.9,6.06648]
[1724431702687,3.73197,2679.6,2679.2,2.3337]
[1724431702906,3.7317,2679.8,2679.2,6.06614]
[1724431703110,3.7317,2679.8,2679.2,6.06607]
[1724431703267,3.7317,2679.8,2679.2,9.79843]
[1724431703467,3.7317,2679.8,2679.2,6.06606]
[1724431703692,7.4634,2679.8,2679.2,6.06606]
[1724431704505,3.73177,2679.7,2679.2,6.06606]
[1724431705273,6.73144,2680.0,2679.3,2.4224]
[1724431705609,3.73142,2680.0,2679.5,2.3257]
[1724431705781,3.73113,2680.2,2679.5,6.05766]
[1724431705985,3.73128,2680.1,2679.5,6.05766]
[1724431706313,5.99706,2680.6,2679.5,2.3257]
[1724431706314,7.46345,2679.8,2679.5,2.3257]
[1724431706483,3.73178,2679.7,2679.5,2.3257]
[1724431706683,3.7319,2679.6,2679.5,2.3257]
[1724431706910,3.73212,2679.5,2679.3,2.3144]
[1724431707095,3.73217,2679.4,2679.3,2.3144]
[1724431707395,3.73217,2679.4,2679.2,19.84]
[1724431707779,3.73212,2679.5,2679.2,19.84]
[1724431708095,7.46372,2679.7,2679.2,19.84]
[1724431708297,3.73183,2679.7,2679.2,19.84]
[1724431708502,3.73154,2679.9,2679.3,2.2914]
[1724431708698,3.73177,2679.7,2679.3,2.2914]
[1724431708902,7.4636,2679.7,2679.3,2.2914]
[1724431709099,3.73177,2679.7,2679.3,2.2914]
[1724431709412,3.73205,2679.5,2679.3,2.2914]
[1724431709587,3.73205,2679.5,2679.2,19.84]
[1724431709790,7.46417,2679.5,2679.2,19.84]
[1724431710017,3.73205,2679.5,2679.2,19.84]
[1724431710242,7.86991362,2680.0,2679.2,19.84]
[1724431710381,7.46462,2679.3,2679.2,19.84]
[1724431711028,7.46462,2679.3,2678.6,3.73328]
[1724431711029,3.73285,2679.0,2678.5,9.7756]
[1724431711312,3.73312,2678.8,2678.5,2.3356]
[1724431711521,3.73316,2678.7,2678.5,2.3356]
[1724431711731,3.7333,2678.6,2678.2,9.7756]
[1724431711943,7.46669,2678.6,2678.2,9.7756]
[1724431712275,3.7333,2678.6,2678.2,9.7756]
[1724431712483,7.46669,2678.6,2678.2,9.7756]
[1724431712804,3.7333,2678.6,2678.2,9.7756]
[1724431713677,3.73307,2678.8,2678.2,9.7756]
[1724431714110,7.4662,2678.8,2678.2,9.7756]
[1724431714315,3.73307,2678.8,2678.2,13.50942]
[1724431714532,3.73279,2679.0,2678.3,3.73368]
[1724431714709,3.73296,2678.9,2678.3,3.73368]
[1724431714908,3.73313,2678.8,2678.2,13.50944]
[1724431715589,3.73316,2678.7,2678.2,9.7756]
[1724431715998,3.73316,2678.7,2678.2,13.50942]
[1724431717371,3.73282,2679.0,2678.6,2.3966]
[1724431717525,3.73288,2678.9,2678.6,2.3966]
[1724431717724,3.73282,2679.0,2678.6,2.3966]